fUST/lending_fUST_20250307
["ID","MTS","AMOUNT","RATE_DAILY","PERIOD"]
[355576967,1741311711097,-500.0,0.00025966,2]
[355576968,1741311711121,-408.1828815,0.00026226,2]
[355576969,1741311711145,-1018.11,0.000272,3]
[355576970,1741311711169,-500.0,0.00027373,2]
[355576971,1741311711194,-500.0,0.00027373,2]
[355576972,1741311711220,-504.42670677,0.00027373,2]
[355576973,1741311711245,-500.0,0.00027373,2]
[355576974,1741311711269,-482.01245608,0.00027373,2]
[355576975,1741311711295,-500.0,0.00027373,2]
[355576976,1741311711318,-500.0,0.00027373,2]
[355576977,1741311711343,-670.14311841,0.00027377,2]
[355576978,1741311711366,-1720.95531471,0.00027377,2]
[355576979,1741311711390,-5361.14494728,0.00027387,2]
[355576980,1741311711414,-10082.82737864,0.00027387,2]
[355576981,1741311941051,-1000.0,0.00025,2]
[355576982,1741311941073,-1000.0,0.00025,30]
[355576983,1741311941095,-2841.42429955,0.00025,30]
[355576984,1741311941119,-300.0,0.00026574,2]
[355576985,1741311941141,-1802.27570045,0.00027297,2]
[355577007,1741312231972,-314.27935078,0.00025287,2]
[355577008,1741312231982,-779.418195,0.00026288,2]
[355577009,1741312231992,-2374.9131936,0.00026429,2]
[355577010,1741312232001,-2942.030697,0.00027286,2]
[355577011,1741312232011,-300.0,0.00027372,2]
[355577012,1741312232021,-500.0,0.00027373,2]
[355577013,1741312232030,-500.0,0.00027373,2]
[355577014,1741312232039,-500.0,0.00027373,2]
[355577015,1741312232049,-500.0,0.00027373,2]
[355577016,1741312232059,-500.0,0.00027373,2]
[355577017,1741312232069,-417.03943936,0.00027374,2]
[355577018,1741312232080,-1130.76618004,0.00027374,2]
[355577019,1741312232090,-417.03943936,0.00027377,2]
[355577020,1741312232099,-1130.76618004,0.00027377,2]
[355577021,1741312232109,-161.77265436,0.00027381,2]
[355577022,1741312232119,-240.30931428,0.00027383,2]
[355577023,1741312232128,-500.0,0.00027383,2]
[355577024,1741312232137,-500.0,0.00027383,2]
[355577025,1741312232147,-500.0,0.00027383,2]
[355577026,1741312232156,-500.0,0.00027383,2]
[355577027,1741312232166,-500.0,0.00027383,2]
[355577028,1741312232176,-500.0,0.00027383,2]
[355577029,1741312232185,-279.89269202,0.00027383,2]
[355577030,1741312232195,-11454.85693257,0.00027384,2]
[355577065,1741312237745,-767.5339905,0.00027384,2]
[355577104,1741312240150,-415.87000056,0.00027384,2]
[355577145,1741312245845,-371.57588626,0.00027384,2]
[355577154,1741312245923,-443.205,0.00027384,2]
[355577156,1741312245939,-692.47007229,0.00027384,2]
[355577177,1741312246229,-5123.5693494,0.00027384,2]
[355577228,1741313432288,-153.0,0.00025,2]
[355577230,1741313432299,-422.75,0.00025284,2]
[355577275,1741313437944,-303.80594436,0.00025284,2]
[355577277,1741313437954,-540.649537,0.0002543,2]
[355577279,1741313437963,-300.0,0.00025884,2]
[355577280,1741313437973,-1355.54451864,0.00025885,2]
[355577460,1741314632238,-772.32806116,0.00022,2]
[355577461,1741314632248,-817.66868302,0.00023785,2]
[355577462,1741314632258,-270.324769,0.00024408,2]
[355577463,1741314632267,-153.0,0.00025,2]
[355577464,1741314632276,-210.7124831,0.00025195,2]
[355577465,1741314632286,-251.35069791,0.00025294,2]
[355577466,1741314632298,-16360.17734289,0.00025294,2]
[355577467,1741314632307,-842.094401,0.00025377,2]
[355577468,1741314632317,-761.1885049,0.00025482,2]
[355577469,1741314632326,-200.50307733,0.0002579,2]
[355577470,1741314632335,-6978.93847153,0.000258,2]
[355577489,1741314638207,-17423.2,0.000258,2]
[355577491,1741314638219,-24642.86152847,0.000258,2]
[355577493,1741314638228,-153.0,0.0002589,2]
[355577495,1741314638238,-8062.93306373,0.000259,4]
[355577497,1741314638247,-173.1350364,0.00025992,2]
[355577499,1741314638256,-152.0,0.00026,2]
[355577501,1741314638265,-152.0,0.00026164,2]
[355577503,1741314638275,-521.02787027,0.00026848,2]
[355577505,1741314638284,-391.40080934,0.00026848,2]
[355577507,1741314638295,-500.0,0.00026848,2]
[355577509,1741314638304,-410.04169179,0.00026848,2]
[355577607,1741314646294,-89.95830821,0.00026848,2]
[355577608,1741314646303,-500.0,0.00026848,2]
[355577609,1741314646313,-563.8059018,0.00026848,2]
[355577610,1741314646322,-1141.40027753,0.00026849,2]
[355577649,1741315832438,-300.0,0.00019021,2]
[355577651,1741315832449,-500.0,0.00019022,2]
[355577653,1741315832459,-500.0,0.00019022,2]
[355577655,1741315832470,-500.0,0.00019022,2]
[355577657,1741315832480,-500.0,0.00019022,2]
[355577659,1741315832490,-500.0,0.00019022,2]
[355577661,1741315832501,-500.0,0.00019022,2]
[355577663,1741315832511,-500.0,0.00019022,2]
[355577665,1741315832521,-500.0,0.00019022,2]
[355577668,1741315832531,-840.25431484,0.00019022,2]
[355577670,1741315832541,-787.52326194,0.00019022,2]
[355577672,1741315832552,-500.0,0.000192,2]
[355577674,1741315832562,-500.0,0.000192,2]
[355577676,1741315832572,-500.0,0.000192,2]
[355577678,1741315832583,-500.0,0.000192,2]
[355577680,1741315832593,-500.0,0.000192,2]
[355577682,1741315832607,-500.0,0.000192,2]
[355577684,1741315832618,-500.0,0.000192,2]
[355577687,1741315832627,-500.0,0.000192,2]
[355577690,1741315832636,-500.0,0.000192,2]
[355577718,1741315832955,-500.0,0.000192,2]
[355577719,1741315832974,-500.0,0.000192,2]
[355577720,1741315832991,-420.0,0.00020732,2]
[355577721,1741315833001,-4144.76191851,0.0002159,2]
[355577722,1741315833010,-816.04560717,0.00022157,2]
[355577723,1741315833020,-816.04560717,0.00022462,2]
[355577724,1741315833030,-816.04560717,0.00022501,2]
[355577725,1741315833039,-500.0,0.0002252,2]
[355577726,1741315833049,-587.0,0.00022598,2]
[355577727,1741315833058,-270.3247698,0.00022737,2]
[355577728,1741315833067,-816.04560717,0.00022817,2]
[355577729,1741315833077,-2813.496242,0.00023045,2]
[355577730,1741315833087,-816.04560717,0.00023223,2]
[355577731,1741315833096,-816.04560717,0.00023409,2]
[355577732,1741315833106,-500.0,0.00023706,2]
[355577733,1741315833122,-816.04560717,0.00023771,2]
[355577734,1741315833131,-595.11245535,0.000238,2]
[355577735,1741315833141,-816.04560717,0.00023957,2]
[355577736,1741315833150,-6247.82109541,0.00024,3]
[355577871,1741317032623,-813.72104228,0.00016865,2]
[355577873,1741317032633,-813.72104228,0.00017141,2]
[355577875,1741317032643,-813.72104228,0.00017457,2]
[355577877,1741317032655,-813.72104228,0.00017728,2]
[355577879,1741317032665,-813.72104228,0.00017887,2]
[355577881,1741317032675,-158.27,0.000179,2]
[355577883,1741317032685,-200.0,0.000179,2]
[355577885,1741317032694,-813.72104228,0.00018152,2]
[355577887,1741317032704,-813.72104228,0.00018588,2]
[355577889,1741317032714,-314.008775,0.00018726,2]
[355577891,1741317032723,-813.72104228,0.00018767,2]
[355577893,1741317032733,-813.72104228,0.00019017,2]
[355577895,1741317032742,-300.0,0.00019021,2]
[355577898,1741317032752,-727.42256685,0.00019022,2]
[355577899,1741317032762,-500.0,0.00019022,2]
[355577902,1741317032772,-500.0,0.00019022,2]
[355577904,1741317032782,-500.0,0.00019022,2]
[355577906,1741317032791,-500.0,0.00019022,2]
[355577908,1741317032802,-500.0,0.00019022,2]
[355577910,1741317032811,-500.0,0.00019022,2]
[355577912,1741317032821,-500.0,0.00019022,2]
[355577914,1741317032831,-500.0,0.00019022,2]
[355577916,1741317032841,-500.0,0.00019022,2]
[355577918,1741317032850,-909.85567738,0.00019022,2]
[355577920,1741317032860,-500.0,0.00019022,2]
[355577922,1741317032870,-500.0,0.00019022,2]
[355577924,1741317032879,-712.47673806,0.00019022,2]
[355577926,1741317032888,-787.52326194,0.00019022,2]
[355577928,1741317032898,-500.0,0.000192,2]
[355577930,1741317032910,-500.0,0.000192,2]
[355577938,1741317033119,-500.0,0.000192,2]
[355577939,1741317033135,-500.0,0.000192,2]
[355577940,1741317033146,-500.0,0.000192,2]
[355577941,1741317033158,-500.0,0.000192,2]
[355577942,1741317033168,-500.0,0.000192,2]
[355577943,1741317033179,-500.0,0.000192,2]
[355577944,1741317033190,-500.0,0.000192,2]
[355577945,1741317033200,-500.0,0.000192,2]
[355577946,1741317033211,-500.0,0.000192,2]
[355577947,1741317033221,-500.0,0.000192,2]
[355577948,1741317033231,-500.0,0.000192,2]
[355577949,1741317033241,-500.0,0.000192,2]
[355577950,1741317033252,-500.0,0.000192,2]
[355577951,1741317033262,-813.72104228,0.00019338,2]
[355577952,1741317033273,-813.72104228,0.00019519,2]
[355577953,1741317033283,-813.72104228,0.00019753,2]
[355577954,1741317033293,-813.72104228,0.00020206,2]
[355577955,1741317033303,-227.45047213,0.00020406,2]
[355577956,1741317033316,-586.27057015,0.00020406,2]
[355577957,1741317033326,-420.0,0.00020732,2]
[355577958,1741317033337,-813.72104228,0.00020739,2]
[355577959,1741317033348,-64.74490239,0.00021,2]
[355577970,1741317038487,-235.25509761,0.00021,2]
[355577971,1741317038498,-813.72104228,0.00021005,2]
[355577972,1741317038509,-813.72104228,0.00021311,2]
[355577973,1741317038520,-571.00281783,0.00021586,2]
[355577974,1741317038537,-242.71822445,0.00021586,2]
[355577975,1741317038548,-813.72104228,0.00021768,2]
[355577976,1741317038558,-2570.85913869,0.000218,2]
[355577977,1741317038577,-183.92016299,0.000218,2]
[355577978,1741317038587,-1043.57256873,0.000219,2]
[355577979,1741317038598,-2899.99,0.00021917,3]
[355577980,1741317038609,-1433.25,0.00021917,3]
[355577981,1741317038620,-2307.32,0.00021917,3]
[355577982,1741317038631,-160.0,0.00021917,3]
[355577983,1741317038641,-500.0,0.00021917,3]
[355577984,1741317038651,-3528.03915409,0.00021917,3]
[355578000,1741317038851,-3572.10084591,0.00021917,3]
[355578001,1741317038861,-500.0,0.00021917,3]
[355578002,1741317038871,-4306.04,0.00021917,3]
[355578003,1741317038881,-2283.49,0.00021917,3]
[355578004,1741317038891,-1846.15,0.00021917,3]
[355578005,1741317038900,-4081.61,0.00021917,3]
[355578006,1741317038912,-1000.0,0.00021917,7]
[355578007,1741317038922,-1203.89,0.00021917,3]
[355578008,1741317038931,-1876.04,0.00021917,3]
[355578009,1741317038941,-500.0,0.00021917,3]
[355578010,1741317038950,-999.55,0.00021917,3]
[355578011,1741317038959,-723.97,0.00021917,3]
[355578012,1741317038968,-872.66,0.00021917,3]
[355578013,1741317038978,-987.99,0.00021917,3]
[355578014,1741317038987,-1945.73,0.00021917,3]
[355578015,1741317038996,-2873.92,0.00021917,3]
[355578016,1741317039005,-500.0,0.00021917,2]
[355578017,1741317039014,-6723.74,0.00021917,3]
[355578018,1741317039023,-500.0,0.00021917,3]
[355578019,1741317039033,-5909.3,0.00021917,3]
[355578020,1741317039042,-500.0,0.00021939,3]
[355578021,1741317039051,-500.0,0.00021939,3]
[355578022,1741317039060,-501.81078894,0.00021939,3]
[355578023,1741317039069,-502.65753548,0.00021939,3]
[355578024,1741317039078,-500.0,0.00021939,3]
[355578025,1741317039087,-500.0,0.00021939,3]
[355578026,1741317039097,-500.0,0.00021939,3]
[355578027,1741317039106,-326.8355675,0.00021939,3]
[355578028,1741317039122,-479.3144325,0.00021939,3]
[355578029,1741317039131,-58.27266076,0.00021939,3]
[355578035,1741317040766,-441.72733924,0.00021939,3]
[355578036,1741317040776,-587.47,0.00021939,3]
[355578037,1741317040785,-500.0,0.00021939,3]
[355578038,1741317040794,-500.0,0.00021939,3]
[355578039,1741317040803,-508.09805761,0.00021939,3]
[355578040,1741317040813,-516.82988772,0.00021939,3]
[355578041,1741317040822,-505.25452539,0.00021939,3]
[355578042,1741317040831,-525.45124841,0.00021939,3]
[355578043,1741317040840,-503.12865988,0.00021939,3]
[355578044,1741317040849,-500.0,0.00021939,3]
[355578045,1741317040858,-502.87,0.00021939,3]
[355578046,1741317040867,-78.67078175,0.00021939,3]
[355578047,1741317040882,-545.55921825,0.00021939,3]
[355578048,1741317040892,-976.48,0.00021939,3]
[355578049,1741317040901,-200.50307733,0.00022113,2]
[355578050,1741317040912,-813.72104228,0.00022127,2]
[355578051,1741317040922,-2899.99,0.00022191,3]
[355578052,1741317040931,-1433.25,0.00022191,3]
[355578053,1741317040940,-2307.32,0.00022191,3]
[355578054,1741317040950,-500.0,0.00022191,3]
[355578055,1741317040959,-7100.14,0.00022191,3]
[355578056,1741317040969,-500.0,0.00022191,3]
[355578057,1741317040978,-1365.28666214,0.00022191,3]
[355578073,1741317043734,-495.9367762,0.00022191,3]
[355578074,1741317043745,-2444.81656166,0.00022191,3]
[355578075,1741317043790,-2283.49,0.00022191,3]
[355578076,1741317043799,-1846.15,0.00022191,3]
[355578077,1741317043808,-4081.61,0.00022191,3]
[355578078,1741317043817,-1000.0,0.00022191,7]
[355578079,1741317043826,-1203.89,0.00022191,3]
[355578080,1741317043835,-1876.04,0.00022191,3]
[355578081,1741317043844,-418.57269998,0.00022191,3]
[355578082,1741317043859,-81.42730002,0.00022191,3]
[355578083,1741317043868,-999.55,0.00022191,3]
[355578084,1741317043877,-723.97,0.00022191,3]
[355578085,1741317043886,-625.48310806,0.00022191,3]
[355578086,1741317043897,-247.17689194,0.00022191,3]
[355578087,1741317043907,-987.99,0.00022191,3]
[355578088,1741317043916,-1945.73,0.00022191,3]
[355578089,1741317043926,-2873.92,0.00022191,3]
[355578090,1741317043935,-524.45600914,0.00022191,2]
[355578091,1741317043945,-6723.74,0.00022191,3]
[355578092,1741317043955,-500.0,0.00022191,3]
[355578093,1741317043964,-5909.3,0.00022191,3]
[355578094,1741317043973,-500.0,0.00022213,3]
[355578095,1741317043983,-500.0,0.00022213,3]
[355578096,1741317043992,-500.0,0.00022213,3]
[355578097,1741317044000,-500.0,0.00022213,3]
[355578098,1741317044010,-500.0,0.00022213,3]
[355578099,1741317044018,-806.15,0.00022213,3]
[355578100,1741317044028,-500.0,0.00022213,3]
[355578101,1741317044037,-587.47,0.00022213,3]
[355578102,1741317044046,-500.0,0.00022213,3]
[355578103,1741317044056,-500.0,0.00022213,3]
[355578104,1741317044065,-500.0,0.00022213,3]
[355578105,1741317044073,-502.87,0.00022213,3]
[355578106,1741317044083,-624.23,0.00022213,3]
[355578107,1741317044091,-976.48,0.00022213,3]
[355578108,1741317044101,-813.72104228,0.00022375,2]
[355578109,1741317044110,-2899.99,0.00022465,3]
[355578110,1741317044119,-1433.25,0.00022465,3]
[355578111,1741317044129,-2307.32,0.00022465,3]
[355578112,1741317044139,-500.0,0.00022465,3]
[355578113,1741317044149,-7100.14,0.00022465,3]
[355578114,1741317044159,-500.0,0.00022465,3]
[355578115,1741317044168,-4306.04,0.00022465,3]
[355578116,1741317044178,-2283.49,0.00022465,3]
[355578117,1741317044188,-1846.15,0.00022465,3]
[355578118,1741317044196,-4081.61,0.00022465,3]
[355578119,1741317044205,-1000.0,0.00022465,7]
[355578120,1741317044214,-1203.89,0.00022465,3]
[355578121,1741317044223,-1876.04,0.00022465,3]
[355578122,1741317044232,-500.0,0.00022465,3]
[355578123,1741317044242,-999.55,0.00022465,3]
[355578124,1741317044251,-723.97,0.00022465,3]
[355578125,1741317044260,-872.66,0.00022465,3]
[355578126,1741317044269,-987.99,0.00022465,3]
[355578127,1741317044278,-1945.73,0.00022465,3]
[355578128,1741317044287,-2873.92,0.00022465,3]
[355578129,1741317044296,-6723.74,0.00022465,3]
[355578130,1741317044305,-500.0,0.00022465,3]
[355578131,1741317044314,-3371.55557918,0.00022465,3]
[355578132,1741317044327,-2537.74442082,0.00022465,3]
[355578133,1741317044336,-813.72104228,0.00022466,2]
[355578135,1741317044345,-35.07944405,0.00022487,3]
[355578137,1741317044356,-464.92055595,0.00022487,3]
[355578138,1741317044366,-500.0,0.00022487,3]
[355578139,1741317044375,-500.0,0.00022487,3]
[355578140,1741317044384,-500.0,0.00022487,3]
[355578142,1741317044393,-500.0,0.00022487,3]
[355578144,1741317044402,-806.15,0.00022487,3]
[355578145,1741317044411,-500.0,0.00022487,3]
[355578147,1741317044420,-435.14080844,0.00022487,3]
[355578149,1741317044435,-152.32919156,0.00022487,3]
[355578150,1741317044444,-500.0,0.00022487,3]
[355578152,1741317044454,-500.0,0.00022487,3]
[355578154,1741317044463,-500.0,0.00022487,3]
[355578156,1741317044473,-502.87,0.00022487,3]
[355578158,1741317044482,-624.23,0.00022487,3]
[355578160,1741317044492,-976.48,0.00022487,3]
[355578161,1741317044501,-500.0,0.0002255,2]
[355578162,1741317044510,-587.0,0.00022598,2]
[355578164,1741317044520,-236.30721534,0.00022738,2]
[355578165,1741317044532,-500.0,0.00022738,2]
[355578166,1741317044541,-500.0,0.00022738,2]
[355578167,1741317044552,-500.0,0.00022738,2]
[355578168,1741317044563,-500.0,0.00022738,2]
[355578169,1741317044572,-500.0,0.00022738,2]
[355578170,1741317044582,-500.0,0.00022738,2]
[355578171,1741317044592,-500.0,0.00022738,2]
[355578172,1741317044602,-500.0,0.00022738,2]
[355578173,1741317044611,-500.0,0.00022738,2]
[355578174,1741317044620,-500.0,0.00022738,2]
[355578175,1741317044630,-500.0,0.00022738,2]
[355578176,1741317044639,-224.79959354,0.00022738,2]
[355578177,1741317044649,-500.0,0.00022738,2]
[355578178,1741317044658,-500.0,0.00022738,2]
[355578179,1741317044669,-500.0,0.00022738,2]
[355578180,1741317044678,-500.0,0.00022738,2]
[355578181,1741317044687,-500.0,0.00022738,2]
[355578182,1741317044696,-500.0,0.00022738,2]
[355578183,1741317044705,-500.0,0.00022738,2]
[355578184,1741317044714,-500.0,0.00022738,2]
[355578185,1741317044723,-485.19313984,0.00022738,2]
[355578186,1741317044732,-500.0,0.00022738,2]
[355578187,1741317044740,-500.0,0.00022738,2]
[355578188,1741317044749,-500.0,0.00022738,2]
[355578189,1741317044758,-495.96192657,0.00022738,2]
[355578232,1741317046603,-306.55785098,0.00021917,3]
[355578234,1741317046615,-193.44214902,0.00021917,3]
[355578236,1741317046625,-161.0494585,0.00021917,3]
[355578238,1741317046634,-298.40839148,0.00022191,3]
[355578242,1741317046658,-201.59160852,0.00022191,3]
[355578244,1741317046668,-433.21,0.00022456,3]
[355578246,1741317046677,-4.03807343,0.00022738,2]
[355578248,1741317046686,-484.30096524,0.00022738,2]
[355578448,1741318232002,-6039.8714012,0.00018859,2]
[355578450,1741318232012,-314.008775,0.00018973,2]
[355578452,1741318232021,-300.0,0.00019021,2]
[355578454,1741318232030,-500.0,0.00019022,2]
[355578456,1741318232039,-500.0,0.00019022,2]
[355578458,1741318232049,-500.0,0.00019022,2]
[355578460,1741318232058,-500.0,0.00019022,2]
[355578462,1741318232067,-504.66543416,0.00019022,2]
[355578464,1741318232077,-733.57228864,0.00019022,2]
[355578466,1741318232086,-733.57228864,0.00019022,2]
[355578468,1741318232095,-500.0,0.000192,2]
[355578469,1741318232104,-500.0,0.000192,2]
[355578470,1741318232114,-500.0,0.000192,2]
[355578471,1741318232124,-500.0,0.000192,2]
[355578472,1741318232134,-500.0,0.000192,2]
[355578473,1741318232143,-500.0,0.000192,2]
[355578474,1741318232152,-500.0,0.000192,2]
[355578475,1741318232161,-500.0,0.000192,2]
[355578476,1741318232171,-779.63081484,0.00019228,2]
[355578477,1741318232180,-779.63081484,0.00019678,2]
[355578478,1741318232190,-779.63081484,0.00019901,2]
[355578479,1741318232199,-779.63081484,0.00020145,2]
[355578480,1741318232208,-186.795984,0.00020187,2]
[355578481,1741318232218,-2643.48120952,0.00020218,2]
[355578482,1741318232227,-24900.0,0.00020312,2]
[355578483,1741318232236,-1508.88315892,0.00020365,2]
[355578484,1741318232248,-183.12503772,0.00020365,2]
[355578485,1741318232259,-779.63081484,0.00020467,2]
[355578486,1741318232268,-13301.31482906,0.0002061,2]
[355578487,1741318232277,-779.63081484,0.00020633,2]
[355578488,1741318232286,-186.795984,0.00020725,2]
[355578489,1741318232296,-420.0,0.00020732,2]
[355578490,1741318232306,-6735.60777631,0.00021,2]
[355578491,1741318232316,-779.63081484,0.00021095,2]
[355578493,1741318232325,-779.63081484,0.00021117,2]
[355578494,1741318232334,-186.795984,0.00021263,2]
[355578495,1741318232344,-779.63081484,0.00021453,2]
[355578497,1741318232354,-186.795984,0.00021801,2]
[355578499,1741318232363,-779.63081484,0.00021804,2]
[355578500,1741318232374,-161.77265436,0.00021901,2]
[355578501,1741318232383,-151.0,0.00021912,2]
[355578503,1741318232392,-500.0,0.00021912,2]
[355578505,1741318232402,-500.0,0.00021912,2]
[355578507,1741318232415,-500.0,0.00021912,2]
[355578509,1741318232424,-518.45426969,0.00021912,2]
[355578511,1741318232434,-500.0,0.00021912,2]
[355578512,1741318232443,-500.0,0.00021912,2]
[355578513,1741318232453,-500.0,0.00021912,2]
[355578514,1741318232462,-214.93854082,0.00021912,2]
[355578515,1741318232472,-277.49213647,0.00021912,2]
[355578516,1741318232488,-222.50786353,0.00021912,2]
[355578517,1741318232498,-500.0,0.00021912,2]
[355578518,1741318232508,-500.0,0.00021912,2]
[355578519,1741318232518,-500.0,0.00021912,2]
[355578520,1741318232527,-500.0,0.00021912,2]
[355578521,1741318232537,-500.0,0.00021912,2]
[355578522,1741318232546,-500.0,0.00021912,2]
[355578523,1741318232556,-500.0,0.00021912,2]
[355578524,1741318232565,-500.0,0.00021912,2]
[355578525,1741318232574,-500.0,0.00021912,2]
[355578526,1741318232584,-500.0,0.00021912,2]
[355578527,1741318232593,-500.0,0.00021912,2]
[355578528,1741318232603,-500.0,0.00021912,2]
[355578529,1741318232612,-500.0,0.00021912,2]
[355578530,1741318232623,-500.0,0.00021912,2]
[355578531,1741318232632,-500.0,0.00021912,2]
[355578532,1741318232641,-500.0,0.00021912,2]
[355578533,1741318232651,-500.0,0.00021912,2]
[355578534,1741318232660,-500.0,0.00021912,2]
[355578535,1741318232670,-272.98352722,0.00021912,2]
[355578536,1741318232682,-190.5341872,0.00021912,2]
[355578537,1741318232691,-500.0,0.00021912,2]
[355578538,1741318232701,-500.0,0.00021912,2]
[355578539,1741318232710,-82.78619348,0.00021912,2]
[355578541,1741318237678,-1128.00546443,0.00019812,2]
[355578542,1741318237689,-417.21380652,0.00021912,2]
[355578543,1741318237701,-500.0,0.00021912,2]
[355578544,1741318237711,-500.0,0.00021912,2]
[355578545,1741318237721,-500.0,0.00021912,2]
[355578546,1741318237731,-500.0,0.00021912,2]
[355578547,1741318237741,-500.0,0.00021912,2]
[355578548,1741318237752,-500.0,0.00021912,2]
[355578549,1741318237762,-500.0,0.00021912,2]
[355578551,1741318237772,-500.0,0.00021912,2]
[355578553,1741318237782,-500.0,0.00021912,2]
[355578554,1741318237792,-500.0,0.00021912,2]
[355578555,1741318237801,-500.0,0.00021912,2]
[355578556,1741318237812,-500.0,0.00021912,2]
[355578557,1741318237822,-500.0,0.00021912,2]
[355578558,1741318237832,-500.0,0.00021912,2]
[355578559,1741318237842,-500.0,0.00021912,2]
[355578560,1741318237851,-478.94590916,0.00021912,2]
[355578563,1741318239871,-21.05409084,0.00021912,2]
[355578564,1741318239881,-500.0,0.00021912,2]
[355578565,1741318239891,-500.0,0.00021912,2]
[355578566,1741318239901,-500.0,0.00021912,2]
[355578567,1741318239912,-456.57609246,0.00021912,2]
[355578568,1741318239986,-43.42390754,0.00021912,2]
[355578569,1741318239997,-500.0,0.00021912,2]
[355578570,1741318240008,-500.0,0.00021912,2]
[355578571,1741318240021,-500.0,0.00021912,2]
[355578572,1741318240031,-500.0,0.00021912,2]
[355578573,1741318240041,-317.5144402,0.00021912,2]
[355578574,1741318240052,-500.0,0.00021912,2]
[355578575,1741318240062,-500.0,0.00021912,2]
[355578576,1741318240072,-500.0,0.00021912,2]
[355578577,1741318240083,-500.0,0.00021912,2]
[355578578,1741318240093,-500.0,0.00021912,2]
[355578579,1741318240102,-500.0,0.00021912,2]
[355578580,1741318240113,-500.0,0.00021912,2]
[355578581,1741318240123,-500.0,0.00021912,2]
[355578582,1741318240133,-500.0,0.00021912,2]
[355578583,1741318240144,-500.0,0.00021912,2]
[355578584,1741318240154,-500.0,0.00021912,2]
[355578585,1741318240164,-500.0,0.00021912,2]
[355578586,1741318240174,-500.0,0.00021912,2]
[355578587,1741318240184,-500.0,0.00021912,2]
[355578588,1741318240195,-500.0,0.00021912,2]
[355578589,1741318240205,-500.0,0.00021912,2]
[355578590,1741318240215,-500.0,0.00021912,2]
[355578591,1741318240225,-500.0,0.00021912,2]
[355578592,1741318240235,-500.0,0.00021912,2]
[355578593,1741318240245,-647.50561763,0.00021912,2]
[355578594,1741318240255,-500.0,0.00021912,2]
[355578595,1741318240265,-500.0,0.00021912,2]
[355578596,1741318240275,-500.0,0.00021912,2]
[355578597,1741318240498,-435.88979068,0.00021912,2]
[355578667,1741318242899,-64.11020932,0.00021912,2]
[355578668,1741318242909,-500.0,0.00021912,2]
[355578669,1741318242919,-500.0,0.00021912,2]
[355578670,1741318242931,-500.0,0.00021912,2]
[355578671,1741318242947,-500.0,0.00021912,2]
[355578672,1741318242957,-500.0,0.00021912,2]
[355578673,1741318242967,-500.0,0.00021912,2]
[355578674,1741318242976,-500.0,0.00021912,2]
[355578675,1741318242986,-500.0,0.00021912,2]
[355578676,1741318242995,-49.66223805,0.00021912,2]
[355578708,1741318245759,-450.33776195,0.00021912,2]
[355578709,1741318245768,-500.0,0.00021912,2]
[355578710,1741318245778,-500.0,0.00021912,2]
[355578711,1741318245788,-500.0,0.00021912,2]
[355578712,1741318245797,-500.0,0.00021912,2]
[355578713,1741318245807,-500.0,0.00021912,2]
[355578714,1741318245817,-500.0,0.00021912,2]
[355578715,1741318245826,-500.0,0.00021912,2]
[355578716,1741318245835,-500.0,0.00021912,2]
[355578717,1741318245845,-162.94352122,0.00021916,2]